[Event "MCCT Chessable Masters 2022"]
[Site "Online"]
[Date "2022.05.16"]
[Round "9.6"]
[White "Van Foreest, Jorden"]
[Black "Giri, Anish"]
[Result "0-1"]
[ECO "A05"]
[WhiteElo "2715"]
[BlackElo "2761"]
[Annotator "TA"]
[PlyCount "78"]
[EventDate "2022.05.19"]
[EventType "tourn"]
[EventCountry "NET"]
[SourceTitle "playchess.com"]
[Source "ChessBase"]
[SourceQuality "1"]
[TimeControl "900+10"]

{[%evp 9,78,0,0,7,12,7,10,8,0,2,0,-38,8,-45,19,-54,0,-62,-50,-56,-62,-78,0,0,0,-24,-9,-22,-10,-30,-17,-14,-12,-13,-11,-45,-24,-31,0,0,0,-11,-11,-12,-12,-14,-8,-102,-91,-91,-25,-25,-25,-65,-63,-63,-63,-62,-54,-59,-56,-55,-37,-47,-47,-179,-84,-48,-22,-746,-707]} 1. Nf3 {[%emt 0:00:00]} Nf6 {[%emt 0:00:00]} 2. b3 {[%emt 0:00:04]} g6 {[%emt 0:00:16]} 3. Bb2 {[%emt 0:00:04]} Bg7 {[%emt 0:00:01]} 4. g3 {[%emt 0:00:01]} b5 {[%emt 0:00:07]} 5. Na3 {[%emt 0:00:23][%cal Bb1a3,Ba3c4,Bc4e3][%mdl 32]} b4 {[%emt 0:00:55]} 6. Nc4 {[%emt 0:00:06] [#] A05: Réti Opening: 1 Nf3 Nf6.} a5 $146 {[%emt 0:00:01]} ({Predecessor:} 6... Bb7 7. Bg2 a5 8. O-O O-O 9. a3 c5 10. axb4 axb4 11. Rxa8 Bxa8 12. Qa1 Nc6 13. Qa6 Qc7 14. Ra1 Bb7 15. Qxc6 Bxc6 {0-1 (15) Schekachikhin,M (2406)-Buhmann,R (2580) Chess.com INT 2020}) 7. e4 {[%emt 0:00:56][%cal Be2e4,Be4e5][%mdl 32]} O-O {[%emt 0:02:35]} 8. e5 {[%emt 0:00:08] The position is equal.} Ne4 {[%emt 0:00:06]} 9. Bg2 {[%emt 0:00:22]} d5 {[%emt 0:00:05]} 10. Ne3 {[%emt 0:01:20][%cal Oe3d5]} c5 {[%emt 0:01:19] [#]} (10... e6 $15 {might be stronger.}) 11. O-O {[%emt 0:02:06]} (11. Nxd5 $1 $11 a4 12. bxa4) 11... Nc6 {[%emt 0:00:03] [#]} (11... e6 $15) 12. Re1 {[%emt 0:00:14]} ({White should play} 12. Nxd5 $1 $11 Qxd5 13. Ng5) 12... Be6 {[%emt 0:00:26]} (12... e6 $15) 13. c4 {[%emt 0:02:17]} (13. a3 $11) 13... bxc3 $1 $15 {[%emt 0:00:30]} 14. dxc3 {[%emt 0:00:01]} a4 $1 {[%emt 0:05:22]} ({Much worse is} 14... Nxe5 15. Nxe5 (15. Nxd5 Nxf2 16. Kxf2 Ng4+ 17. Kg1 Bxd5 $17) 15... Bxe5 16. Qc2 $11 (16. Nxd5 Bxd5 17. Bxe4 Bxe4 $11)) 15. bxa4 {[%emt 0:00:08][%cal Oc3c4]} Nxe5 {[%emt 0:01:14] Black is more active.} (15... c4 $17) 16. Nxe5 $11 {[%emt 0:00:43]} ({Not} 16. Nxd5 $2 Nc4 17. Nf4 Qxd1 18. Raxd1 Nxb2 $19) 16... Bxe5 {[%emt 0:00:00]} 17. Nxd5 {[%emt 0:00:01]} Bxd5 {[%emt 0:00:08]} 18. Bxe4 {[%emt 0:00:02]} Bxe4 {[%emt 0:00:01]} 19. Rxe4 {[%emt 0:00:09]} Qxd1+ {[%emt 0:00:01]} 20. Rxd1 {[%emt 0:00:02]} Bd6 {[%emt 0:00:01]} 21. Bc1 {[%emt 0:00:31]} Ra6 {[%emt 0:01:28]} 22. Bg5 {[%emt 0:01:32]} f6 {[%emt 0:00:23]} 23. Bf4 {[%emt 0:00:02]} Bxf4 {[%emt 0:01:01]} 24. gxf4 $15 {[%emt 0:00:07][%mdl 4096] Endgame KRR-KRR} Kf7 {[%emt 0:00:59]} 25. Rde1 {[%emt 0:01:22]} Ra7 {[%emt 0:00:15]} 26. Kg2 {[%emt 0:00:27]} Rd8 {[%emt 0:00:12]} 27. R1e2 {[%emt 0:00:17]} Rd6 {[%emt 0:00:28]} 28. f5 {[%emt 0:02:04]} (28. Rc4 $11) 28... gxf5 $17 {[%emt 0:00:45]} 29. Rh4 {[%emt 0:00:02] [#]} Kg6 {[%emt 0:00:28]} (29... Kg7 $1 $17) 30. Re3 $1 $11 {[%emt 0:00:05]} h6 {[%emt 0:00:32]} 31. Rg3+ {[%emt 0:02:44]} Kf7 {[%emt 0:00:01]} 32. Rxh6 {[%emt 0:00:05]} Rxa4 {[%emt 0:00:01]} 33. Rh7+ {[%emt 0:00:09]} Ke6 $1 {[%emt 0:00:01]} 34. h4 {[%emt 0:00:05]} f4 {[%emt 0:00:39]} 35. Rf3 {[%emt 0:01:12]} (35. Rgg7 $2 Rd7 36. Rh5 Rd2 $17) 35... Rd8 {[%emt 0:00:12]} 36. Rg7 {[%emt 0:00:15] Prevents Rg8.} Rh8 {[%emt 0:00:13]} 37. Kh3 {[%emt 0:00:01]} (37. Rh3 $1 $15) 37... Kf5 {[%emt 0:00:06]} ({And not} 37... Rxa2 38. Rxf4 Re2 39. Kg3 $11) (37... f5 $19 {aiming for ...Kf6.} 38. Rg1 Ke5 39. Re1+ Re4) 38. Rxe7 $17 {[%emt 0:00:04]} Raa8 {[%emt 0:00:04][%cal Oh8h4] White must now prevent ...Rxh4+!} (38... c4 $5 {[%cal Ra4a2]} 39. Rg7 Ke4 $15) 39. Rc7 $2 {[%emt 0:01:12][%mdl 8192]} (39. Rd3 $11) 39... Ke4 {[%emt 0:00:13] Weighted Error Value: White=0.45/Black=0.17 (very precise)} 0-1

[Event "MCCT Chessable Masters 2022"]
[Site "Online"]
[Date "2022.05.16"]
[Round "9.7"]
[White "Mishra, Abhimanyu"]
[Black "Wei, Yi"]
[Result "1-0"]
[ECO "B92"]
[WhiteElo "2535"]
[BlackElo "2727"]
[Annotator "TA"]
[PlyCount "79"]
[EventDate "2022.05.19"]
[EventType "tourn"]
[EventCountry "NET"]
[SourceTitle "playchess.com"]
[Source "ChessBase"]
[SourceQuality "1"]
[TimeControl "900+10"]

{[%evp 18,79,11,0,1,-8,0,0,-2,-16,0,0,0,-41,-52,-79,-29,-35,-14,-41,-17,-8,-6,-14,-16,0,0,0,0,0,69,74,69,70,70,18,17,0,0,-93,19,0,0,-62,0,0,21,0,0,0,0,0,48,8,31,30,95,75,92,85,70,0,148,133]} 1. e4 {[%emt 0:00:00]} c5 {[%emt 0:00:00]} 2. Nf3 {[%emt 0:00:02]} d6 {[%emt 0:00:01]} 3. d4 {[%emt 0:00:01]} cxd4 {[%emt 0:00:01]} 4. Nxd4 {[%emt 0:00:01]} Nf6 {[%emt 0:00:01]} 5. Nc3 {[%emt 0:00:01]} a6 {[%emt 0:00:01]} 6. Be2 {[%emt 0:00:01]} e5 {[%emt 0:00:01]} 7. Nb3 {[%emt 0:00:01]} Be7 {[%emt 0:00:01]} 8. Be3 {[%emt 0:00:03]} Be6 {[%emt 0:00:04]} 9. Nd5 $1 {[%emt 0:00:01][%mdl 4] is currently scoring better than 9.0-0.} Nbd7 {[%emt 0:00:30]} 10. Qd3 {[%emt 0:00:03]} O-O {[%emt 0:00:05] B92: Sicilian Najdorf: 6 Be2.} 11. O-O-O {[%emt 0:00:04]} Bxd5 {[%emt 0:02:12]} 12. exd5 {[%emt 0:00:02]} Nb6 {[%emt 0:00:14] [#] The position is equal.} 13. Kb1 $146 {[%emt 0:00:03]} ({Predecessor:} 13. Bf3 Qc7 14. Kb1 Nc4 15. Bc1 b5 16. g4 Rfe8 17. Rde1 a5 18. Nd2 Nxd2+ 19. Bxd2 {1-0 (57) Lobanov,S (2427)-Kavyev,R (2057) St Petersburg 2017}) 13... Nfxd5 {[%emt 0:03:28]} 14. Bd2 $1 {[%emt 0:00:06]} Qc8 {[%emt 0:00:21]} 15. Bf3 {[%emt 0:02:59] A strong pair of Bishops.} Nf6 {[%emt 0:00:10]} 16. Bg5 {[%emt 0:00:50]} Re8 {[%emt 0:03:02]} (16... Rd8 $17) 17. Bxf6 {[%emt 0:01:10]} Bxf6 {[%emt 0:00:03]} 18. Be4 {[%emt 0:03:32]} d5 {[%emt 0:01:32]} 19. Bxd5 {[%emt 0:01:14]} Nxd5 {[%emt 0:00:05]} 20. Qxd5 {[%emt 0:00:03]} e4 {[%emt 0:00:11]} 21. Qd7 {[%emt 0:02:44] Inhibits Qg4.} Qc4 {[%emt 0:00:33]} 22. Qxb7 {[%emt 0:00:39]} a5 {[%emt 0:01:39][%cal Ba6a5,Ba5a4,Ba4a3][%mdl 32] And now ...Rac8 would win.} 23. Qd5 {[%emt 0:00:21]} Qe2 {[%emt 0:00:18]} (23... Qc8 $11 24. Qd7 Qc4) 24. Rhe1 $1 $14 {[%emt 0:00:58]} Qxf2 {[%emt 0:01:15] Hoping for ...a4.} 25. Rxe4 {[%emt 0:00:24]} a4 {[%emt 0:00:22]} (25... Red8 $2 26. Qxd8+ Rxd8 27. Rxd8+ Bxd8 28. Re8#) 26. Nc5 {[%emt 0:01:05]} (26. Rxe8+ $14 Rxe8 27. Qc6) 26... Rec8 $11 {[%emt 0:00:30] [#] Strongly threatening ...Rab8.} 27. c3 $1 {[%emt 0:01:52][%cal Od1e1] Active counter play!} Rab8 {[%emt 0:00:48][%csl Gb8][%cal Rf2b2]} 28. Nd3 {[%emt 0:00:28] [#]} (28. Nxa4 $11 Bxc3 29. b3) 28... Qa7 {[%emt 0:01:19]} ({Black should play} 28... Bxc3 $1 $17 {[%cal Rb8b2] ( -> ...Rxb2+)} 29. Re8+ (29. Nxf2 $2 {is a self mate.} Rxb2+ 30. Kc1 Bd4+) 29... Rxe8 30. Nxf2 Rxb2+ 31. Kc1 Rxf2) 29. Rb4 {[%emt 0:00:40]} a3 {[%emt 0:00:02]} 30. b3 {[%emt 0:00:24]} ({Reject} 30. Rxb8 Qxb8 31. b3 Bxc3 $15) (30. g3 $11) 30... Qc7 {[%emt 0:00:08]} ({Don't play} 30... Rxc3 31. Rxb8+ Qxb8 32. Ne5 $1 $11) (30... Rd8 $15 31. Rxb8 Qxb8) 31. Rxb8 {[%emt 0:00:12]} Rxb8 {[%emt 0:00:02]} 32. c4 {[%emt 0:00:08]} Rd8 {[%emt 0:00:30]} 33. Qe4 {[%emt 0:00:03]} h5 {[%emt 0:00:23]} 34. Nf2 {[%emt 0:00:15] Black must now prevent Rxd8+.} Rb8 {[%emt 0:00:13]} (34... Rxd1+ $11 {is more appropriate.} 35. Nxd1 g6) 35. g3 {[%emt 0:00:11]} Qa5 {[%emt 0:00:02][%cal Ob8b3]} 36. Rd3 {[%emt 0:00:10]} Qc5 {[%emt 0:00:22]} (36... Kf8 $11) 37. Nd1 {[%emt 0:00:08]} Qg1 {[%emt 0:00:16]} 38. Qe2 {[%emt 0:00:13]} h4 {[%emt 0:00:21]} 39. g4 {[%emt 0:00:10]} (39. Kc2 $14) 39... h3 {[%emt 0:00:34] [#]} (39... Kf8 $11 {keeps the balance.}) 40. Kc2 $1 {[%emt 0:00:16] Weighted Error Value: White=0.21 (precise) /Black=0.27 (precise)} 1-0

[Event "MCCT Chessable Masters 2022"]
[Site "Online"]
[Date "2022.05.16"]
[Round "9.8"]
[White "Shankland, Sam"]
[Black "Vidit, Santosh Gujrathi"]
[Result "0-1"]
[ECO "A29"]
[WhiteElo "2718"]
[BlackElo "2723"]
[Annotator "TA"]
[PlyCount "66"]
[EventDate "2022.05.19"]
[EventType "tourn"]
[EventCountry "NET"]
[SourceTitle "playchess.com"]
[Source "ChessBase"]
[SourceQuality "1"]
[TimeControl "900+10"]

{[%evp 21,66,4,9,8,47,35,49,9,27,0,0,0,-29,-46,-37,-74,-81,-84,-77,-106,-110,-111,-92,-106,-109,-174,-168,-236,-186,-291,-280,-408,-419,-405,-400,-387,-379,-696,-678,-791,-771,-965,-709,-804,-791,-1267,-972]} 1. c4 {[%emt 0:00:00]} e5 {[%emt 0:00:00]} 2. g3 {[%emt 0:00:06]} Nf6 {[%emt 0:00:03]} 3. Bg2 {[%emt 0:00:01]} d5 {[%emt 0:00:02]} 4. cxd5 {[%emt 0:00:02]} Nxd5 {[%emt 0:00:00]} 5. Nf3 {[%emt 0:00:03]} Nc6 {[%emt 0:00:02]} 6. O-O {[%emt 0:00:03]} Nb6 {[%emt 0:00:02]} 7. Nc3 {[%emt 0:00:55]} Be7 {[%emt 0:00:02]} 8. a3 {[%emt 0:00:27]} O-O {[%emt 0:00:25]} 9. d3 {[%emt 0:00:04]} Be6 {[%emt 0:00:17]} 10. Be3 {[%emt 0:00:18]} f5 {[%emt 0:01:10]} 11. Rc1 {[%emt 0:01:26]} Kh8 {[%emt 0:00:39]} 12. Na4 {[%emt 0:00:31] A29: English Opening: Four Knights Variation with 4 g3.} e4 $5 {[%emt 0:02:45][%mdl 4] [#] Exploring less charted territory.} 13. Ne1 $146 {[%emt 0:00:54]} ({Predecessor:} 13. Nd2 exd3 14. Nc5 Bxc5 15. Bxc5 dxe2 16. Qxe2 Re8 17. Rfe1 Bf7 18. Qd1 Qf6 19. Bxc6 bxc6 {½-½ (40) Hujo,J (2138)-Serbin,R (1939) Slovakia 2010}) 13... Nd5 {[%emt 0:02:50]} 14. Bc5 {[%emt 0:00:10] White is slightly better.} Nf6 $1 {[%emt 0:01:08]} 15. Bxe7 {[%emt 0:03:07]} (15. b4 $142) 15... Qxe7 $11 {[%emt 0:00:03]} 16. Nc5 {[%emt 0:00:01]} Bd5 {[%emt 0:00:06]} 17. dxe4 {[%emt 0:00:57]} fxe4 {[%emt 0:00:03]} 18. Rc3 {[%emt 0:01:05]} b6 {[%emt 0:01:45] White is on the road to losing.} 19. Nb3 {[%emt 0:00:08]} Ne5 {[%emt 0:01:23]} 20. Nc2 {[%emt 0:00:39]} Rad8 {[%emt 0:00:05] aiming for ...Bxb3. Black is more active.} 21. Ne3 {[%emt 0:00:12]} Bb7 {[%emt 0:00:14][%cal Bd5b7,Bb7a6,Ba6e2,Be2f3,Bf3d1][%mdl 32]} 22. Qc2 {[%emt 0:00:07]} c5 {[%emt 0:00:01]} 23. Nd2 {[%emt 0:00:17] [#]} (23. Nc1 $17) 23... Nc6 $1 $19 {[%emt 0:00:25]} 24. Nb3 {[%emt 0:02:42]} ({Wrong is} 24. Nxe4 $2 Nd4 25. Nf5 Nxf5 $19) (24. Re1 $142) 24... Qe6 {[%emt 0:00:04]} 25. Rc4 {[%emt 0:00:59]} (25. h3 $142) 25... Ba6 {[%emt 0:02:14]} 26. Rxe4 {[%emt 0:00:08]} (26. Re1 $142) 26... Nxe4 {[%emt 0:00:01]} 27. Bxe4 {[%emt 0:00:01] [#]} Bxe2 $1 {[%emt 0:00:13][%mdl 512]} 28. Re1 {[%emt 0:00:25]} Bf3 {[%emt 0:00:24]} 29. Bf5 {[%emt 0:01:09]} (29. Bxf3 Rxf3 30. Nd2) 29... Qh6 {[%emt 0:00:17] Black is clearly winning.} 30. Nc4 {[%emt 0:00:21]} Qh5 {[%emt 0:00:17]} 31. Be4 {[%emt 0:00:36]} Rde8 {[%emt 0:00:26] ...Qh3 is the strong threat.} 32. Ncd2 {[%emt 0:00:13]} Ne5 {[%emt 0:00:35] ( -> ...Qh3)} 33. Re3 {[%emt 0:00:32]} Bd1 {[%emt 0:00:31] Weighted Error Value: White=0.73/Black=0.19 (very precise)} 0-1

[Event "MCCT Chessable Masters 2022"]
[Site "Online"]
[Date "2022.05.16"]
[Round "10.1"]
[White "Carlsen, Magnus"]
[Black "Vidit, Santosh Gujrathi"]
[Result "1-0"]
[ECO "B07"]
[WhiteElo "2864"]
[BlackElo "2723"]
[Annotator "TA"]
[PlyCount "135"]
[EventDate "2022.05.19"]
[EventType "tourn"]
[EventCountry "NET"]
[SourceTitle "playchess.com"]
[Source "ChessBase"]
[SourceQuality "1"]
[TimeControl "900+10"]

{[%evp 14,135,5,-3,6,8,14,7,20,18,22,0,0,-12,18,0,0,0,16,0,11,17,43,15,21,22,23,-14,-10,-8,0,0,119,119,119,119,119,109,113,96,110,117,114,118,128,123,122,122,126,126,157,157,158,134,158,115,158,139,159,155,153,137,137,135,137,137,162,158,194,194,214,190,235,235,235,235,235,235,235,235,235,235,235,235,235,235,235,235,243,235,235,235,235,168,168,168,477,477,477,477,477,477,5170,5161,4618,4618,2047,1919,29979,29980,29981,29982,29983,29984,29986,29987,29987,29979,29985,29979,29979,29979,29979,29979]} 1. d3 {[%emt 0:00:00]} c5 {[%emt 0:00:00]} 2. e4 {[%emt 0:00:08]} Nc6 {[%emt 0:00:04]} 3. f4 {[%emt 0:00:04]} g6 {[%emt 0:00:15]} 4. Nf3 {[%emt 0:00:07]} Bg7 {[%emt 0:00:01]} 5. Be2 {[%emt 0:00:06]} d6 {[%emt 0:01:16]} 6. O-O {[%emt 0:00:05]} Nf6 {[%emt 0:00:07]} 7. Qe1 {[%emt 0:00:04]} O-O {[%emt 0:00:06]} 8. Nc3 {[%emt 0:01:36]} Nd4 {[%emt 0:00:33] B07: Pirc Defence: Miscellaneous Systems.} 9. Bd1 {[%emt 0:00:09]} Bd7 {[%emt 0:01:42]} 10. Qh4 {[%emt 0:00:13]} Bg4 {[%emt 0:01:22] The position is equal.} 11. Nxd4 {[%emt 0:01:31]} cxd4 {[%emt 0:00:02]} 12. Ne2 {[%emt 0:00:32]} Rc8 {[%emt 0:00:47]} 13. Qf2 {[%emt 0:00:10]} Qb6 {[%emt 0:01:15] [#]} 14. h3 $146 {[%emt 0:00:21]} ({Predecessor:} 14. c4 dxc3 15. Qxb6 axb6 16. Nxc3 Bxd1 17. Rxd1 Nd7 18. Nd5 {0-1 (50) Berczes,D (2446)-Kozak,A (2502) Budapest 2020}) 14... Bxe2 {[%emt 0:00:30]} 15. Qxe2 {[%emt 0:00:15]} Rc7 {[%emt 0:00:47]} 16. Qf2 {[%emt 0:00:17]} Nd7 {[%emt 0:00:19][%cal Bf6d7,Bd7c5,Bc5a4,Ba4b2][%mdl 32]} 17. a4 {[%emt 0:00:48]} a5 {[%emt 0:00:06]} 18. Ra3 {[%emt 0:00:03]} Nc5 {[%emt 0:00:43]} 19. f5 {[%emt 0:04:23]} Qc6 {[%emt 0:00:03]} 20. Bd2 {[%emt 0:00:41]} Nxa4 {[%emt 0:01:06]} 21. c4 {[%emt 0:00:51]} Nxb2 {[%emt 0:01:17]} 22. Bf3 {[%emt 0:00:30] [#] aiming for e5.} b5 {[%emt 0:00:20]} (22... a4 $1 $11 {keeps the balance.}) 23. Bxa5 $16 {[%emt 0:00:32][%mdl 64] Hoping for cxb5. Discovered Attack. White now steadily converts the win.} Nxd3 {[%emt 0:02:21]} 24. Rxd3 {[%emt 0:00:04] Black must now prevent e5.} bxc4 {[%emt 0:00:01] [#]} 25. f6 $1 {[%emt 0:01:14] White is more active.} cxd3 {[%emt 0:00:29]} (25... Bxf6 26. e5) 26. fxg7 {[%emt 0:00:03]} Kxg7 {[%emt 0:00:33]} 27. Bxc7 {[%emt 0:00:03]} ({But not} 27. Qxd4+ $6 e5 28. Qf2 Rb7 $11) 27... Qxc7 {[%emt 0:00:01]} 28. Qxd4+ {[%emt 0:00:01]} Kg8 {[%emt 0:00:04]} 29. Qxd3 {[%emt 0:00:01]} Qc5+ {[%emt 0:00:03]} 30. Kh1 {[%emt 0:00:03]} Kg7 {[%emt 0:00:41]} 31. Bd1 {[%emt 0:00:22]} Qe5 {[%emt 0:00:30]} 32. Bb3 {[%emt 0:00:03]} e6 {[%emt 0:00:47]} 33. Bd1 {[%emt 0:00:10]} Ra8 {[%emt 0:00:16]} 34. Qf3 {[%emt 0:00:12]} Rf8 {[%emt 0:01:11]} 35. Be2 {[%emt 0:00:07]} h5 {[%emt 0:00:11]} 36. Bc4 {[%emt 0:00:51]} Kg8 {[%emt 0:00:13]} 37. Rb1 {[%emt 0:00:17]} Kg7 {[%emt 0:00:11]} 38. Rb7 {[%emt 0:00:31]} Qa1+ {[%emt 0:00:08]} 39. Bf1 {[%emt 0:00:07]} Qf6 {[%emt 0:00:08]} 40. Rd7 {[%emt 0:00:05]} Qe5 {[%emt 0:00:40]} 41. g3 {[%emt 0:00:14]} Kg8 {[%emt 0:00:19]} 42. Bg2 {[%emt 0:00:16]} Kg7 {[%emt 0:00:06]} 43. h4 {[%emt 0:00:18]} Qd4 {[%emt 0:00:23]} 44. Qf4 {[%emt 0:00:16]} Qe5 {[%emt 0:00:20]} 45. Rxd6 {[%emt 0:00:01]} Qxf4 {[%emt 0:00:01]} 46. gxf4 $18 {[%emt 0:00:00][%mdl 4096] Endgame KRB-KR} Rc8 {[%emt 0:00:02]} 47. Rd3 {[%emt 0:00:08]} Rc2 {[%emt 0:00:04]} 48. Kh2 {[%emt 0:00:01]} Kf6 {[%emt 0:00:07]} 49. Kg3 {[%emt 0:00:03]} Ra2 {[%emt 0:00:07]} 50. Bf3 {[%emt 0:00:04]} Ke7 {[%emt 0:00:04]} 51. Rb3 {[%emt 0:00:03]} Kf6 {[%emt 0:00:08]} 52. e5+ {[%emt 0:01:00]} Kg7 {[%emt 0:00:02]} 53. f5 {[%emt 0:00:01]} gxf5 {[%emt 0:00:54]} 54. Bxh5 {[%emt 0:00:02]} f6 $2 {[%emt 0:00:11]} (54... Ra7 {is more resistant.} 55. Kf4 Kh6) 55. Rb7+ {[%emt 0:00:49]} Kh6 {[%emt 0:00:01]} 56. Bf3 {[%emt 0:00:16]} ({Less strong is} 56. Bf7 Ra3+ 57. Kg2 Ra2+ 58. Kg1 Ra1+ 59. Kh2 Ra2+ 60. Kg3 Ra3+ 61. Kh2 fxe5 $14) 56... fxe5 {[%emt 0:00:04]} 57. Rb6 {[%emt 0:00:02]} e4 {[%emt 0:00:27]} (57... Ra5 $142 58. Rxe6+ Kg7) 58. Rxe6+ {[%emt 0:00:01]} Kg7 {[%emt 0:00:00]} 59. Bh5 {[%emt 0:00:02]} Ra5 {[%emt 0:00:19]} 60. Kf4 {[%emt 0:00:04] White threatens Bg6 and mate.} Rc5 {[%emt 0:00:01]} 61. Bg6 {[%emt 0:00:17] White mates.} e3 {[%emt 0:00:05]} 62. Bxf5 {[%emt 0:00:02]} Rc4+ {[%emt 0:00:03]} 63. Kg5 {[%emt 0:00:01]} Rc7 {[%emt 0:00:09]} 64. Rxe3 {[%emt 0:00:02]} Kf8 {[%emt 0:00:02]} 65. Kh6 {[%emt 0:00:17]} Kg8 {[%emt 0:00:27]} 66. Re8+ {[%emt 0:00:03]} Kf7 {[%emt 0:00:01]} 67. Bg6+ {[%emt 0:00:02]} Kf6 {[%emt 0:00:22]} 68. h5 {[%emt 0:00:05] Weighted Error Value: White=0.07 (flawless) /Black=0.30} 1-0

[Event "MCCT Chessable Masters 2022"]
[Site "Online"]
[Date "2022.05.16"]
[Round "10.2"]
[White "Wei, Yi"]
[Black "Shankland, Sam"]
[Result "1/2-1/2"]
[ECO "D43"]
[WhiteElo "2727"]
[BlackElo "2718"]
[Annotator "TA"]
[PlyCount "102"]
[EventDate "2022.05.19"]
[EventType "tourn"]
[EventCountry "NET"]
[SourceTitle "playchess.com"]
[Source "ChessBase"]
[SourceQuality "1"]
[TimeControl "900+10"]

{[%evp 12,102,51,65,56,35,38,29,95,52,57,64,54,60,108,104,107,100,97,73,94,116,108,100,97,100,94,94,115,112,106,109,88,27,46,41,52,0,3,8,8,8,8,0,10,0,0,0,4,0,7,7,0,0,0,0,0,0,0,0,0,0,97,40,39,39,39,39,39,52,54,54,59,59,59,59,59,39,59,59,59,59,59,16,37,0,0,0,0,0,0,0,0]} 1. d4 {[%emt 0:00:00]} d5 {[%emt 0:00:00]} 2. c4 {[%emt 0:00:06]} c6 {[%emt 0:00:01]} 3. Nf3 {[%emt 0:00:02]} Nf6 {[%emt 0:00:01]} 4. Nc3 {[%emt 0:00:02]} e6 {[%emt 0:00:01]} 5. Qd3 {[%emt 0:00:03]} Nbd7 {[%emt 0:00:55]} 6. e4 {[%emt 0:00:02]} dxc4 {[%emt 0:01:33]} 7. Qxc4 {[%emt 0:00:03]} Be7 {[%emt 0:00:01] D43: Semi-Slav: 5 Bg5 h6.} 8. Bf4 {[%emt 0:02:05]} O-O {[%emt 0:00:52]} 9. Be2 {[%emt 0:00:44] [#]} c5 $146 {[%emt 0:01:04]} (9... a6 $11 {remains equal.}) ({Predecessor:} 9... Nb6 10. Qb3 Ne8 11. O-O Bf6 12. Rfd1 g6 13. a4 Qe7 14. a5 Nd7 15. Bh6 Bg7 16. Bxg7 Kxg7 {1-0 (22) Cruz Pino,A (2121)-Grube,K (1633) Gran Canaria 2019}) 10. dxc5 {[%emt 0:00:52]} Nxc5 {[%emt 0:00:30][%cal Ob7b5]} 11. Rd1 {[%emt 0:00:50]} Bd7 {[%emt 0:00:22]} 12. b4 {[%emt 0:00:20]} Na6 {[%emt 0:01:07]} (12... b5 $1 $14 {is more appropriate.} 13. Qd4 (13. Nxb5 Ncxe4 14. Nc7 Rb8 $15) 13... Na4) 13. a3 $16 {[%emt 0:00:05]} Rc8 {[%emt 0:00:13]} 14. Qb3 $36 {[%emt 0:01:09][%mdl 2048] White is really pushing.} Qb6 {[%emt 0:00:46][%cal Ra6b4]} 15. e5 {[%emt 0:00:48]} Nd5 {[%emt 0:03:34]} 16. Nxd5 {[%emt 0:00:24]} exd5 {[%emt 0:00:01]} 17. O-O {[%emt 0:00:15]} ({Don't play} 17. Qxd5 $6 Ba4 18. Be3 Qg6 $11) (17. Rxd5 $2 Be6 18. Qd1 Bxd5 19. Qxd5 Rc3 $17) (17. Be3 {is more complex.} Qg6 18. O-O Bh3 19. Ne1) 17... Nc7 {[%emt 0:00:05]} 18. Nd4 {[%emt 0:00:56]} a5 {[%emt 0:00:29]} 19. Be3 $1 {[%emt 0:00:30][%cal Od4f5]} axb4 {[%emt 0:01:08] [#]} 20. Nf5 $1 {[%emt 0:00:02][%mdl 512]} Qe6 {[%emt 0:00:01]} 21. Bg4 {[%emt 0:00:08][%cal Of5h6] 0x0.001df4e0ac5adp-1022s more active pieces.} Kh8 {[%emt 0:00:27]} (21... Qxe5 $2 22. Bd4 Qe4 23. f3 Qxf5 24. Bxf5 Bxf5 25. axb4 $18) (21... bxa3 $2 22. Nh6+ $1 {[%mdl 512]} Qxh6 23. Bxh6 Bxg4 24. Qg3 gxh6 25. Qxg4+ Kh8 26. Qd7 $18) 22. Bd4 {[%emt 0:04:13]} (22. axb4 $16 {Strongly threatening h3.} Ra8 23. Rc1) 22... Nb5 {[%emt 0:01:18]} 23. axb4 {[%emt 0:02:05] And now Bh3 would win.} Rc4 {[%emt 0:01:58]} 24. Bh3 {[%emt 0:00:12]} (24. Ne3 $14 Nxd4 25. Bxe6 Nxb3 26. Bxd7) 24... Nxd4 {[%emt 0:00:42]} 25. Nxd4 {[%emt 0:00:12][%mdl 64] Pin} Qb6 {[%emt 0:00:01]} 26. Bxd7 {[%emt 0:02:21] Threatens to win with Nf5.} Rxd4 {[%emt 0:00:01]} 27. b5 {[%emt 0:00:21]} Qc5 {[%emt 0:01:12]} 28. Qf3 {[%emt 0:00:27]} Re4 {[%emt 0:00:16]} 29. Rfe1 {[%emt 0:00:23]} Rxe1+ {[%emt 0:00:25]} 30. Rxe1 {[%emt 0:00:01]} Qd4 {[%emt 0:00:01]} 31. g3 {[%emt 0:00:15]} g6 {[%emt 0:00:15]} 32. Kg2 {[%emt 0:00:11]} Kg7 {[%emt 0:00:01]} 33. h4 {[%emt 0:00:10]} h5 {[%emt 0:00:14]} 34. Qe2 {[%emt 0:00:17]} Ra8 {[%emt 0:00:16]} 35. Rd1 {[%emt 0:00:10]} Qc4 {[%emt 0:00:27]} 36. Qf3 {[%emt 0:00:04]} Bc5 {[%emt 0:00:19] [#]} (36... Ra2 $11 {keeps the balance.}) 37. Qxd5 {[%emt 0:00:13]} (37. Qf6+ $1 $16 Kh6 38. Bf5 (38. Qxf7 Rf8 $17)) 37... Qxd5+ $14 {[%emt 0:00:16]} 38. Rxd5 $16 {[%emt 0:00:02][%mdl 4096] Endgame KRB-KRB} b6 {[%emt 0:00:01]} 39. Rd2 {[%emt 0:00:25]} Rd8 {[%emt 0:00:01]} 40. f4 {[%emt 0:00:09]} Kf8 {[%emt 0:00:05] ...Ke7 is the strong threat.} 41. Rd5 {[%emt 0:00:01]} Ke7 {[%emt 0:00:02]} 42. Bc6 {[%emt 0:00:02]} Rxd5 {[%emt 0:00:01]} 43. Bxd5 $14 {[%emt 0:00:00] KB-KB} Bd4 {[%emt 0:00:00]} 44. Kf3 {[%emt 0:00:02]} Bc3 {[%emt 0:00:06]} 45. g4 {[%emt 0:00:36]} Be1 {[%emt 0:00:25]} 46. gxh5 {[%emt 0:00:10]} gxh5 {[%emt 0:00:01]} 47. f5 {[%emt 0:00:08]} f6 {[%emt 0:00:04]} 48. exf6+ {[%emt 0:00:02]} Kxf6 {[%emt 0:00:01] The position is equal.} 49. Bc6 {[%emt 0:00:01]} Bxh4 {[%emt 0:00:02]} 50. Be8 {[%emt 0:00:01]} Kxf5 {[%emt 0:00:01]} 51. Bxh5 {[%emt 0:00:01]} Ke5 {[%emt 0:00:02] Weighted Error Value: White=0.10 (very precise) /Black=0.11 (very precise)} 1/2-1/2